[Event "7° Rencontres Internationales des Echecs Francophones"]
[Site "PARIS, France"]
[Date "2019.08.10"]
[Round "4.5"]
[White "Sebag, Marie"]
[Black "Sochacki, Wojtek"]
[Result "1/2-1/2"]
[TimeControl "90'+30' + 30seconds/move"]
[WhiteElo "2494"]
[BlackElo "2303"]

1. e4 {[%clk 00:05:03]} {[%emt 00:00:03]} e5 {[%clk 00:04:45]} {[%emt
00:00:21]} 2. Nf3 {[%clk 00:05:05]} {[%emt 00:00:02]} Nc6 {[%clk 00:04:47]} 3.
Nc3 {[%clk 00:05:06]} {[%emt 00:00:02]} Nf6 {[%clk 00:04:46]} {[%emt 00:00:03]}
4. d4 {[%clk 00:05:08]} {[%emt 00:00:02]} exd4 {[%clk 00:04:47]} {[%emt
00:00:02]} 5. Nxd4 {[%clk 00:05:09]} {[%emt 00:00:02]} Bb4 {[%clk 00:04:49]} 6.
Nxc6 {[%clk 00:05:10]} {[%emt 00:00:02]} bxc6 {[%clk 00:04:51]} 7. Bd3 {[%clk
00:05:12]} {[%emt 00:00:02]} d5 {[%clk 00:04:53]} 8. Bd2 {[%clk 00:05:09]}
{[%emt 00:00:06]} O-O {[%clk 00:04:51]} {[%emt 00:00:05]} 9. O-O {[%clk
00:05:09]} {[%emt 00:00:02]} Bg4 {[%clk 00:04:43]} {[%emt 00:00:11]} 10. f3
{[%clk 00:05:00]} {[%emt 00:00:13]} Bh5 {[%clk 00:03:57]} {[%emt 00:00:49]} 11.
Qe1 {[%clk 00:04:50]} {[%emt 00:00:13]} Re8 {[%clk 00:03:48]} {[%emt 00:00:13]}
12. Nxd5 {[%clk 00:02:55]} {[%emt 00:01:57]} cxd5 {[%clk 00:03:38]} {[%emt
00:00:12]} 13. Bxb4 {[%clk 00:02:56]} {[%emt 00:00:03]} dxe4 {[%clk 00:03:40]}
{[%emt 00:00:01]} 14. fxe4 {[%clk 00:02:57]} {[%emt 00:00:02]} Nxe4 {[%clk
00:03:16]} {[%emt 00:00:26]} 15. Bxe4 {[%clk 00:02:51]} {[%emt 00:00:09]} Qd4+
{[%clk 00:03:18]} {[%emt 00:00:02]} 16. Qf2 {[%clk 00:02:49]} {[%emt 00:00:05]}
Qxf2+ {[%clk 00:03:03]} {[%emt 00:00:18]} 17. Rxf2 {[%clk 00:02:44]} {[%emt
00:00:07]} Rxe4 {[%clk 00:03:05]} {[%emt 00:00:02]} 18. Bc5 {[%clk 00:02:03]}
{[%emt 00:00:43]} a6 {[%clk 00:02:03]} {[%emt 00:01:05]} 19. c3 {[%clk
00:02:03]} {[%emt 00:00:04]} Rd8 {[%clk 00:01:48]} {[%emt 00:00:18]} 20. h3
{[%clk 00:01:44]} {[%emt 00:00:22]} Bg6 {[%clk 00:01:39]} {[%emt 00:00:13]} 21.
Bd4 {[%clk 00:01:27]} {[%emt 00:00:21]} Rd5 {[%clk 00:01:37]} {[%emt 00:00:04]}
22. b4 {[%clk 00:01:27]} {[%emt 00:00:03]} h5 {[%clk 00:01:27]} {[%emt
00:00:13]} 23. a3 {[%clk 00:01:17]} {[%emt 00:00:13]} Re6 {[%clk 00:01:27]}
{[%emt 00:00:02]} 24. Rff1 {[%clk 00:01:12]} {[%emt 00:00:08]} Be4 {[%clk
00:01:23]} {[%emt 00:00:08]} 25. Rae1 {[%clk 00:01:07]} {[%emt 00:00:08]} Rg5
{[%clk 00:01:24]} {[%emt 00:00:02]} 26. Re2 {[%clk 00:00:54]} {[%emt 00:00:15]}
f5 {[%clk 00:01:26]} {[%emt 00:00:03]} 27. Rff2 {[%clk 00:00:47]} {[%emt
00:00:09]} Rg3 {[%clk 00:01:16]} {[%emt 00:00:13]} 28. Kh2 {[%clk 00:00:40]}
{[%emt 00:00:11]} Rd3 {[%clk 00:01:07]} {[%emt 00:00:11]} 29. Rd2 {[%clk
00:00:37]} {[%emt 00:00:05]} Rxd2 {[%clk 00:00:46]} {[%emt 00:00:25]} 30. Rxd2
{[%clk 00:00:39]} Rd6 {[%clk 00:00:41]} {[%emt 00:00:07]} 31. Be3 {[%clk
00:00:31]} {[%emt 00:00:12]} Rxd2 {[%clk 00:00:35]} {[%emt 00:00:10]} 32. Bxd2
{[%clk 00:00:33]} Kf7 {[%clk 00:00:32]} {[%emt 00:00:05]} 33. Bf4 {[%clk
00:00:35]} c6 {[%clk 00:00:33]} {[%emt 00:00:03]} 34. a4 {[%clk 00:00:29]}
{[%emt 00:00:09]} Kf6 {[%clk 00:00:33]} {[%emt 00:00:03]} 35. h4 {[%clk
00:00:31]} {[%emt 00:00:02]} Ke6 {[%clk 00:00:33]} {[%emt 00:00:02]} 36. a5
{[%clk 00:00:33]} {[%emt 00:00:02]} Kd5 {[%clk 00:00:26]} {[%emt 00:00:10]} 37.
Kg3 {[%clk 00:00:33]} {[%emt 00:00:03]} Bc2 {[%clk 00:00:23]} {[%emt 00:00:04]}
38. Kf3 {[%clk 00:00:25]} {[%emt 00:00:13]} Be4+ {[%clk 00:00:25]} {[%emt
00:00:02]} 39. Kg3 1/2-1/2

[Event "7° Rencontres Internationales des Echecs Francophones"]
[Site "PARIS, France"]
[Date "2019.08.10"]
[Round "4.4"]
[White "Vuilleumier, Alexandre"]
[Black "Hamdouchi, Hicham"]
[Result "0-1"]
[TimeControl "90'+30' + 30seconds/move"]
[WhiteElo "2324"]
[BlackElo "2514"]

1. Nf3 {[%clk 00:05:05]} c5 {[%clk 00:05:01]} {[%emt 00:00:06]} 2. e4 {[%clk
00:05:07]} {[%emt 00:00:02]} Nc6 {[%clk 00:05:02]} {[%emt 00:00:02]} 3. Bb5
{[%clk 00:05:09]} {[%emt 00:00:01]} g6 {[%clk 00:05:01]} {[%emt 00:00:03]} 4.
Bxc6 {[%clk 00:05:10]} {[%emt 00:00:02]} bxc6 {[%clk 00:05:03]} 5. O-O {[%clk
00:05:09]} {[%emt 00:00:04]} Bg7 {[%clk 00:05:05]} 6. c3 {[%clk 00:05:11]}
{[%emt 00:00:02]} Nh6 {[%clk 00:05:04]} {[%emt 00:00:04]} 7. d4 {[%clk
00:05:13]} {[%emt 00:00:01]} cxd4 {[%clk 00:04:49]} {[%emt 00:00:18]} 8. cxd4
{[%clk 00:05:13]} {[%emt 00:00:04]} d6 {[%clk 00:04:51]} 9. Nc3 {[%clk
00:05:10]} {[%emt 00:00:06]} O-O {[%clk 00:04:44]} {[%emt 00:00:10]} 10. h3
{[%clk 00:05:12]} {[%emt 00:00:02]} Rb8 {[%clk 00:04:26]} {[%emt 00:00:21]} 11.
b3 {[%clk 00:04:54]} {[%emt 00:00:21]} f5 {[%clk 00:04:18]} {[%emt 00:00:11]}
12. e5 {[%clk 00:03:57]} {[%emt 00:01:00]} Nf7 {[%clk 00:04:17]} {[%emt
00:00:04]} 13. Qe2 {[%clk 00:03:05]} {[%emt 00:00:55]} Qa5 {[%clk 00:04:08]}
{[%emt 00:00:12]} 14. exd6 {[%clk 00:01:42]} {[%emt 00:01:26]} Ba6 {[%clk
00:03:34]} {[%emt 00:00:37]} 15. Qc2 {[%clk 00:01:16]} {[%emt 00:00:28]} Bxf1
{[%clk 00:03:30]} {[%emt 00:00:08]} 16. dxe7 {[%clk 00:01:18]} {[%emt
00:00:02]} Rfe8 {[%clk 00:03:31]} {[%emt 00:00:01]} 17. Kxf1 {[%clk 00:01:17]}
{[%emt 00:00:03]} Rxe7 {[%clk 00:03:33]} {[%emt 00:00:02]} 18. Bf4 {[%clk
00:01:03]} {[%emt 00:00:16]} Rbe8 {[%clk 00:03:30]} {[%emt 00:00:07]} 19. Kg1
{[%clk 00:00:57]} {[%emt 00:00:09]} h6 {[%clk 00:03:31]} {[%emt 00:00:02]} 20.
h4 {[%clk 00:00:35]} {[%emt 00:00:25]} Bf6 {[%clk 00:03:25]} {[%emt 00:00:09]}
21. Rc1 {[%clk 00:00:23]} {[%emt 00:00:15]} g5 {[%clk 00:03:02]} {[%emt
00:00:26]} 22. hxg5 {[%clk 00:00:25]} {[%emt 00:00:02]} hxg5 {[%clk 00:03:04]}
23. Bd2 {[%clk 00:00:10]} {[%emt 00:00:18]} Re6 {[%clk 00:02:00]} {[%emt
00:01:07]} 24. Ne4 {[%clk 00:00:06]} {[%emt 00:00:07]} Qd5 {[%clk 00:02:01]}
{[%emt 00:00:01]} 25. Nxf6+ {[%clk 00:00:07]} {[%emt 00:00:03]} Rxf6 {[%clk
00:02:03]} {[%emt 00:00:01]} 26. Nxg5 {[%clk 00:00:06]} {[%emt 00:00:04]} Rg6
{[%clk 00:01:55]} {[%emt 00:00:12]} 27. f4 {[%clk 00:00:06]} {[%emt 00:00:03]}
Re2 {[%clk 00:01:56]} 0-1



[ePGN "0.1;DGT LiveChess/2.2.4"]

[Event "7° Rencontres Internationales des Echecs Francophones"]
[Site "PARIS, France"]
[Date "2019.08.10"]
[Round "5.8"]
[White "Denjoy, Arnaud"]
[Black "Flom, Gabriel"]
[Result "0-1"]
[TimeControl "90'+30' + 30seconds/move"]
[WhiteElo "2036"]
[BlackElo "2355"]

1. b3 {[%clk 00:05:04]} d5 {[%clk 00:05:04]} {[%emt 00:00:02]} 2. Bb2 {[%clk
00:05:06]} c6 {[%clk 00:05:07]} 3. Nf3 {[%clk 00:05:07]} {[%emt 00:00:02]} Bf5
{[%clk 00:05:09]} 4. e3 {[%clk 00:05:08]} {[%emt 00:00:03]} e6 {[%clk
00:05:11]} 5. d4 {[%clk 00:05:09]} {[%emt 00:00:01]} h6 {[%clk 00:05:12]}
{[%emt 00:00:03]} 6. Bd3 {[%clk 00:05:11]} {[%emt 00:00:02]} Nd7 {[%clk
00:05:12]} {[%emt 00:00:02]} 7. O-O {[%clk 00:05:09]} {[%emt 00:00:04]} Ngf6
{[%clk 00:05:07]} {[%emt 00:00:08]} 8. c4 {[%clk 00:05:11]} {[%emt 00:00:02]}
Bxd3 {[%clk 00:05:04]} {[%emt 00:00:06]} 9. Qxd3 {[%clk 00:05:13]} {[%emt
00:00:01]} Be7 {[%clk 00:05:03]} {[%emt 00:00:03]} 10. Nc3 {[%clk 00:05:14]}
{[%emt 00:00:01]} O-O {[%clk 00:05:05]} 11. Rfe1 {[%clk 00:05:14]} {[%emt
00:00:03]} Bb4 {[%clk 00:05:06]} {[%emt 00:00:03]} 12. a3 {[%clk 00:04:58]}
{[%emt 00:00:20]} Bxc3 {[%clk 00:05:07]} {[%emt 00:00:01]} 13. Bxc3 {[%clk
00:04:57]} {[%emt 00:00:04]} Qb6 {[%clk 00:05:09]} 14. b4 {[%clk 00:04:43]}
{[%emt 00:00:17]} Qa6 {[%clk 00:05:11]} 15. Nd2 {[%clk 00:04:31]} {[%emt
00:00:14]} Nb6 {[%clk 00:04:51]} {[%emt 00:00:24]} 16. b5 {[%clk 00:04:19]}
{[%emt 00:00:15]} dxc4 {[%clk 00:04:51]} {[%emt 00:00:03]} 17. bxa6 {[%clk
00:04:20]} {[%emt 00:00:03]} cxd3 {[%clk 00:04:53]} 18. axb7 {[%clk 00:04:13]}
{[%emt 00:00:10]} Rab8 {[%clk 00:04:55]} 19. Bb4 {[%clk 00:04:07]} {[%emt
00:00:09]} Rfe8 {[%clk 00:04:57]} 20. Rac1 {[%clk 00:04:08]} Rxb7 {[%clk
00:04:59]} 21. Rxc6 {[%clk 00:04:07]} {[%emt 00:00:04]} Nbd5 {[%clk 00:04:56]}
{[%emt 00:00:06]} 22. Rc4 {[%clk 00:03:59]} {[%emt 00:00:12]} Nxb4 {[%clk
00:04:37]} {[%emt 00:00:22]} 23. Rxb4 {[%clk 00:03:47]} {[%emt 00:00:15]} Rxb4
{[%clk 00:04:35]} {[%emt 00:00:05]} 24. axb4 {[%clk 00:03:49]} Nd5 {[%clk
00:04:38]} 25. Ra1 {[%clk 00:03:45]} {[%emt 00:00:07]} Rc8 {[%clk 00:04:34]}
{[%emt 00:00:07]} 26. g3 {[%clk 00:03:29]} {[%emt 00:00:19]} Rc2 {[%clk
00:04:27]} {[%emt 00:00:09]} 27. Nf3 {[%clk 00:03:21]} {[%emt 00:00:12]} d2
{[%clk 00:03:57]} {[%emt 00:00:33]} 28. Nxd2 {[%clk 00:02:56]} {[%emt
00:00:27]} Rxd2 {[%clk 00:03:59]} 29. Rxa7 {[%clk 00:02:56]} {[%emt 00:00:04]}
Nxb4 {[%clk 00:04:02]} 30. Kg2 {[%clk 00:02:56]} {[%emt 00:00:03]} Nd3 {[%clk
00:04:04]} 0-1

[Event "7° Rencontres Internationales des Echecs Francophones"]
[Site "PARIS, France"]
[Date "2019.08.10"]
[Round "5.2"]
[White "Hamdouchi, Hicham"]
[Black "Dardha, Daniel"]
[Result "1-0"]
[TimeControl "90'+30' + 30seconds/move"]
[WhiteElo "2514"]
[BlackElo "2390"]

1. e4 {[%clk 00:05:05]} c5 {[%clk 00:05:05]} {[%emt 00:00:02]} 2. Nc3 {[%clk
00:05:07]} e5 {[%clk 00:05:01]} {[%emt 00:00:07]} 3. Bc4 {[%clk 00:05:00]}
{[%emt 00:00:09]} d6 {[%clk 00:04:57]} {[%emt 00:00:08]} 4. Nge2 {[%clk
00:04:59]} {[%emt 00:00:04]} Nc6 {[%clk 00:04:51]} {[%emt 00:00:09]} 5. O-O
{[%clk 00:04:54]} {[%emt 00:00:07]} Be7 {[%clk 00:04:52]} {[%emt 00:00:02]} 6.
d3 {[%clk 00:04:53]} {[%emt 00:00:04]} Nf6 {[%clk 00:04:47]} {[%emt 00:00:09]}
7. a4 {[%clk 00:04:42]} {[%emt 00:00:14]} O-O {[%clk 00:04:47]} {[%emt
00:00:03]} 8. h3 {[%clk 00:04:43]} {[%emt 00:00:01]} Be6 {[%clk 00:04:41]}
{[%emt 00:00:09]} 9. f4 {[%clk 00:04:21]} {[%emt 00:00:25]} Bxc4 {[%clk
00:04:00]} {[%emt 00:00:45]} 10. dxc4 {[%clk 00:04:22]} {[%emt 00:00:01]} exf4
{[%clk 00:04:00]} {[%emt 00:00:03]} 11. Nxf4 {[%clk 00:03:54]} {[%emt
00:00:32]} Re8 {[%clk 00:04:00]} {[%emt 00:00:03]} 12. Nd3 {[%clk 00:03:15]}
{[%emt 00:00:41]} Qd7 {[%clk 00:03:40]} {[%emt 00:00:23]} 13. b3 {[%clk
00:03:09]} {[%emt 00:00:09]} Bd8 {[%clk 00:02:55]} {[%emt 00:00:48]} 14. Be3
{[%clk 00:02:20]} {[%emt 00:00:53]} Ba5 {[%clk 00:02:19]} {[%emt 00:00:39]} 15.
Nd5 {[%clk 00:02:14]} {[%emt 00:00:09]} Nxd5 {[%clk 00:02:07]} {[%emt
00:00:14]} 16. cxd5 {[%clk 00:02:13]} {[%emt 00:00:04]} Ne5 {[%clk 00:02:00]}
{[%emt 00:00:10]} 17. Nf2 {[%clk 00:01:30]} {[%emt 00:00:46]} Ng6 {[%clk
00:01:45]} {[%emt 00:00:19]} 18. Qf3 {[%clk 00:01:17]} {[%emt 00:00:16]} f5
{[%clk 00:01:24]} {[%emt 00:00:24]} 19. exf5 {[%clk 00:01:00]} {[%emt
00:00:20]} Nh4 {[%clk 00:01:26]} 20. Qg4 {[%clk 00:01:01]} {[%emt 00:00:02]}
Nxf5 {[%clk 00:00:46]} {[%emt 00:00:43]} 21. Bf4 {[%clk 00:00:39]} {[%emt
00:00:25]} Bc3 {[%clk 00:00:32]} {[%emt 00:00:17]} 22. Rad1 {[%clk 00:00:39]}
{[%emt 00:00:03]} Rf8 {[%clk 00:00:22]} {[%emt 00:00:13]} 23. Ne4 {[%clk
00:00:35]} {[%emt 00:00:06]} Bd4+ {[%clk 00:00:24]} {[%emt 00:00:02]} 24. Kh1
{[%clk 00:00:18]} {[%emt 00:00:20]} Qe7 {[%clk 00:00:14]} {[%emt 00:00:14]} 25.
Rfe1 {[%clk 00:00:19]} {[%emt 00:00:02]} Rae8 {[%clk 00:00:14]} {[%emt
00:00:03]} 26. c3 {[%clk 00:00:12]} {[%emt 00:00:09]} Be5 {[%clk 00:00:16]}
{[%emt 00:00:02]} 27. Nxc5 {[%clk 00:00:09]} {[%emt 00:00:06]} Bxf4 {[%clk
00:00:05]} {[%emt 00:00:14]} 28. Rxe7 {[%clk 00:00:11]} {[%emt 00:00:01]} Ng3+
{[%clk 00:00:07]} 29. Kg1 {[%clk 00:00:07]} {[%emt 00:00:07]} Rxe7 {[%clk
00:00:07]} {[%emt 00:00:03]} 30. Ne6 {[%clk 00:00:09]} Rf6 {[%clk 00:00:04]}
{[%emt 00:00:07]} 31. Rd3 {[%clk 00:00:08]} {[%emt 00:00:04]} h5 {[%clk
00:00:04]} {[%emt 00:00:03]} 32. Qd1 {[%clk 00:00:06]} {[%emt 00:00:05]} Be5
{[%clk 00:00:05]} {[%emt 00:00:02]} 33. c4 {[%clk 00:00:05]} {[%emt 00:00:03]}
Ref7 {[%clk 00:00:06]} {[%emt 00:00:03]} 34. Rf3 {[%clk 00:00:05]} {[%emt
00:00:03]} Rxf3 {[%clk 00:00:05]} {[%emt 00:00:03]} 35. gxf3 {[%clk 00:00:07]}
b6 {[%clk 00:00:06]} {[%emt 00:00:03]} 36. b4 {[%clk 00:00:07]} {[%emt
00:00:03]} Nf5 {[%clk 00:00:07]} {[%emt 00:00:02]} 37. Qd3 {[%clk 00:00:08]}
{[%emt 00:00:02]} Nh4 {[%clk 00:00:06]} {[%emt 00:00:04]} 38. Ng5 {[%clk
00:00:08]} {[%emt 00:00:03]} Rf5 {[%clk 00:00:06]} {[%emt 00:00:03]} 39. f4
{[%clk 00:00:06]} {[%emt 00:00:04]} Bxf4 {[%clk 00:00:06]} {[%emt 00:00:04]} 40.
Ne6 {[%clk 00:00:07]} {[%emt 00:00:03]} Be5 {[%clk 00:00:05]} {[%emt 00:00:03]}
41. c5 {[%clk 00:00:09]} bxc5 {[%clk 00:00:07]} {[%emt 00:00:02]} 42. bxc5
{[%clk 00:00:11]} Nf3+ {[%clk 00:00:06]} {[%emt 00:00:03]} 43. Kh1 {[%clk
00:00:13]} {[%emt 00:00:02]} dxc5 {[%clk 00:00:05]} {[%emt 00:00:04]} 44. Qxf5
{[%clk 00:00:11]} {[%emt 00:00:04]} 1-0

[Event "7° Rencontres Internationales des Echecs Francophones"]
[Site "PARIS, France"]
[Date "2019.08.10"]
[Round "5.6"]
[White "Sochacki, Wojtek"]
[Black "Prie, Eric"]
[Result "1-0"]
[TimeControl "90'+30' + 30seconds/move"]
[WhiteElo "2303"]
[BlackElo "2439"]

1. e4 {[%clk 00:05:04]} {[%emt 00:00:02]} d5 {[%clk 00:05:05]} {[%emt
00:00:02]} 2. exd5 {[%clk 00:05:06]} Qxd5 {[%clk 00:05:07]} {[%emt 00:00:01]} 3.
Nc3 {[%clk 00:05:08]} Qa5 {[%clk 00:05:09]} {[%emt 00:00:02]} 4. Bc4 {[%clk
00:05:10]} Nf6 {[%clk 00:05:10]} {[%emt 00:00:02]} 5. d3 {[%clk 00:05:12]} Bg4
{[%clk 00:05:09]} {[%emt 00:00:05]} 6. Nge2 {[%clk 00:05:14]} e6 {[%clk
00:05:04]} {[%emt 00:00:08]} 7. Bd2 {[%clk 00:05:16]} {[%emt 00:00:01]} Qb6
{[%clk 00:05:03]} {[%emt 00:00:04]} 8. h3 {[%clk 00:05:12]} {[%emt 00:00:06]}
Bf5 {[%clk 00:04:48]} {[%emt 00:00:18]} 9. Be3 {[%clk 00:05:01]} {[%emt
00:00:15]} Qd6 {[%clk 00:04:34]} {[%emt 00:00:16]} 10. O-O {[%clk 00:04:47]}
{[%emt 00:00:17]} Nc6 {[%clk 00:04:34]} {[%emt 00:00:03]} 11. Bf4 {[%clk
00:04:43]} {[%emt 00:00:07]} Qd7 {[%clk 00:04:31]} {[%emt 00:00:07]} 12. Re1
{[%clk 00:04:14]} {[%emt 00:00:32]} Bd6 {[%clk 00:04:23]} {[%emt 00:00:11]} 13.
Bxd6 {[%clk 00:04:12]} {[%emt 00:00:05]} cxd6 {[%clk 00:04:04]} {[%emt
00:00:21]} 14. Ng3 {[%clk 00:04:12]} {[%emt 00:00:03]} Bg6 {[%clk 00:04:06]} 15.
Nce4 {[%clk 00:03:56]} {[%emt 00:00:20]} d5 {[%clk 00:03:45]} {[%emt 00:00:24]}
16. Nxf6+ {[%clk 00:03:51]} {[%emt 00:00:08]} gxf6 {[%clk 00:03:46]} {[%emt
00:00:01]} 17. Bb5 {[%clk 00:03:51]} {[%emt 00:00:03]} O-O-O {[%clk 00:03:44]}
{[%emt 00:00:05]} 18. h4 {[%clk 00:03:35]} {[%emt 00:00:20]} h5 {[%clk
00:03:42]} {[%emt 00:00:05]} 19. Qf3 {[%clk 00:03:34]} {[%emt 00:00:04]} Qe7
{[%clk 00:03:24]} {[%emt 00:00:20]} 20. Bxc6 {[%clk 00:03:22]} {[%emt
00:00:15]} bxc6 {[%clk 00:03:26]} 21. Qf4 {[%clk 00:03:20]} {[%emt 00:00:06]}
e5 {[%clk 00:03:20]} {[%emt 00:00:09]} 22. Qa4 {[%clk 00:03:19]} {[%emt
00:00:04]} Kb7 {[%clk 00:03:20]} {[%emt 00:00:03]} 23. b4 {[%clk 00:03:13]}
{[%emt 00:00:09]} f5 {[%clk 00:03:09]} {[%emt 00:00:13]} 24. b5 {[%clk
00:03:14]} {[%emt 00:00:03]} cxb5 {[%clk 00:03:07]} {[%emt 00:00:05]} 25. Qxb5+
{[%clk 00:03:15]} {[%emt 00:00:02]} Ka8 {[%clk 00:03:05]} {[%emt 00:00:05]} 26.
Rab1 {[%clk 00:03:12]} {[%emt 00:00:07]} Qd7 {[%clk 00:02:36]} {[%emt
00:00:31]} 27. Rxe5 {[%clk 00:02:47]} {[%emt 00:00:28]} Qxb5 {[%clk 00:02:34]}
{[%emt 00:00:05]} 28. Rxb5 {[%clk 00:02:48]} {[%emt 00:00:02]} Rc8 {[%clk
00:02:29]} {[%emt 00:00:08]} 29. Rb2 {[%clk 00:02:19]} {[%emt 00:00:32]} Rb8
{[%clk 00:02:16]} {[%emt 00:00:16]} 30. Rxb8+ {[%clk 00:02:03]} {[%emt
00:00:19]} Rxb8 {[%clk 00:02:17]} 31. Rxd5 {[%clk 00:01:59]} {[%emt 00:00:07]}
Rb2 {[%clk 00:02:16]} {[%emt 00:00:03]} 32. c4 {[%clk 00:01:43]} {[%emt
00:00:21]} Rxa2 {[%clk 00:02:17]} {[%emt 00:00:02]} 33. f4 {[%clk 00:01:33]}
{[%emt 00:00:13]} Kb7 {[%clk 00:02:01]} {[%emt 00:00:19]} 34. Kf1 {[%clk
00:01:33]} {[%emt 00:00:03]} a5 {[%clk 00:01:57]} {[%emt 00:00:07]} 35. Ne2
{[%clk 00:01:35]} {[%emt 00:00:01]} a4 {[%clk 00:01:41]} {[%emt 00:00:19]} 36.
Nc3 {[%clk 00:01:37]} Ra3 {[%clk 00:01:38]} {[%emt 00:00:06]} 37. Rb5+ {[%clk
00:01:04]} {[%emt 00:00:35]} Kc6 {[%clk 00:01:24]} {[%emt 00:00:17]} 38. Nd5
{[%clk 00:01:06]} {[%emt 00:00:02]} Rb3 {[%clk 00:01:00]} {[%emt 00:00:26]} 39.
Ra5 {[%clk 00:01:07]} {[%emt 00:00:03]} a3 {[%clk 00:01:01]} {[%emt 00:00:02]}
40. Ke2 {[%clk 00:01:08]} {[%emt 00:00:02]} f6 {[%clk 00:00:58]} {[%emt
00:00:06]} 41. Ke3 {[%clk 00:00:42]} {[%emt 00:00:30]} Kb7 {[%clk 00:00:44]}
{[%emt 00:00:16]} 42. Kd4 {[%clk 00:00:33]} {[%emt 00:00:11]} Be8 {[%clk
00:00:45]} {[%emt 00:00:02]} 43. Nc3 {[%clk 00:00:24]} {[%emt 00:00:12]} Kb6
{[%clk 00:00:41]} {[%emt 00:00:07]} 44. Rxf5 {[%clk 00:00:23]} {[%emt
00:00:04]} Rb2 {[%clk 00:00:20]} {[%emt 00:00:25]} 45. Rxf6+ {[%clk 00:00:24]}
{[%emt 00:00:02]} Bc6 {[%clk 00:00:18]} {[%emt 00:00:04]} 46. Nd5+ {[%clk
00:00:18]} {[%emt 00:00:09]} Kb7 {[%clk 00:00:13]} {[%emt 00:00:07]} 47. Rf7+
{[%clk 00:00:20]} {[%emt 00:00:02]} Ka6 {[%clk 00:00:07]} {[%emt 00:00:09]} 48.
Nc3 {[%clk 00:00:17]} {[%emt 00:00:06]} a2 {[%clk 00:00:08]} {[%emt 00:00:02]}
49. Nxa2 {[%clk 00:00:19]} {[%emt 00:00:02]} Rxa2 {[%clk 00:00:10]} 50. Kc5
{[%clk 00:00:16]} {[%emt 00:00:06]} Bxg2 {[%clk 00:00:09]} {[%emt 00:00:03]} 51.
d4 {[%clk 00:00:15]} {[%emt 00:00:04]} Rc2 {[%clk 00:00:10]} {[%emt 00:00:02]}
52. Rf6+ {[%clk 00:00:12]} {[%emt 00:00:06]} Kb7 {[%clk 00:00:12]} 53. Rb6+
{[%clk 00:00:10]} {[%emt 00:00:06]} Kc7 {[%clk 00:00:14]} 54. d5 {[%clk
00:00:11]} {[%emt 00:00:02]} Bf1 {[%clk 00:00:15]} {[%emt 00:00:01]} 55. Rb4
{[%clk 00:00:11]} {[%emt 00:00:04]} Be2 {[%clk 00:00:14]} {[%emt 00:00:04]} 56.
Kd4 {[%clk 00:00:13]} Bf1 {[%clk 00:00:13]} {[%emt 00:00:04]} 57. c5 {[%clk
00:00:15]} {[%emt 00:00:01]} Rd2+ {[%clk 00:00:15]} {[%emt 00:00:01]} 58. Ke5
{[%clk 00:00:17]} Re2+ {[%clk 00:00:16]} {[%emt 00:00:01]} 59. Re4 {[%clk
00:00:18]} {[%emt 00:00:02]} Rc2 {[%clk 00:00:11]} {[%emt 00:00:08]} 60. c6
{[%clk 00:00:19]} {[%emt 00:00:03]} Bg2 {[%clk 00:00:12]} {[%emt 00:00:02]} 61.
Rd4 {[%clk 00:00:21]} Rc5 {[%clk 00:00:12]} {[%emt 00:00:03]} 62. Ke6 {[%clk
00:00:22]} {[%emt 00:00:02]} Kd8 {[%clk 00:00:11]} {[%emt 00:00:05]} 63. f5
{[%clk 00:00:23]} {[%emt 00:00:02]} Bh3 {[%clk 00:00:11]} {[%emt 00:00:02]} 64.
Kd6 {[%clk 00:00:23]} {[%emt 00:00:03]} Rc1 {[%clk 00:00:07]} {[%emt 00:00:07]}
65. Ra4 {[%clk 00:00:25]} {[%emt 00:00:02]} Bxf5 {[%clk 00:00:08]} {[%emt
00:00:01]} 66. Rf4 {[%clk 00:00:27]} {[%emt 00:00:01]} Bg6 {[%clk 00:00:06]}
{[%emt 00:00:05]} 67. Rf8+ {[%clk 00:00:29]} Be8 {[%clk 00:00:08]} 68. c7+
{[%clk 00:00:31]} 1-0